Cogmind - Beta 14 @@@ ROGUE MODE // 2024.08.08 @ 18:41:03 Player: ILikeVoltron Result: Destroyed by KQ-4P5(R) with Subdweller Laser Performance ------------- Evolutions (0) 0 Regions Visited (2) 400 Robots Destroyed (21) 105 Value Destroyed (489) 489 Prototype IDs (0) 0 Alien Tech Used (0) 0 Bonus (0) 0 TOTAL SCORE: 994 Bonus ------- None Cogmind --------- Core Integrity 0/250 Matter 283/300 Energy 196/200 System Corruption 0% Temperature Cool (6) Movement Rolling (110) Location -10/Subcaves Parts ------- > --- POWER (1) -------- Subdweller Power Source > --- PROPULSION (2) --- Subdweller Monowheel > --- UTILITY (2) ------ Small Storage Unit Seismic Detector > --- WEAPON (2) ------- Light Assault Rifle Battle Cannon > --- INVENTORY (8) ---- Subdweller Power Source Subdweller Monowheel Subdweller Optics Improved Terrain Scanner Cobbler Unit Grenade Launcher Subdweller Shrapnel Launcher Peak State ------------ > --- POWER ------------ Subdweller Power Source > --- PROPULSION ------- Aluminum Leg > --- UTILITY ---------- Small Storage Unit Improved Terrain Scanner > --- WEAPON ----------- Assault Rifle Dirty Datajack > --- INVENTORY -------- Ion Engine Subdweller Optics Seismic Detector Cobbler Unit Subdweller Laser Light Assault Rifle Grenade Launcher [Rating: 15] Favorites ----------- Power Ion Engine Engine Ion Engine Propulsion Aluminum Leg Leg Aluminum Leg Wheel Subdweller Monowheel Utility Small Storage Unit Device Improved Terrain Scanner Storage Small Storage Unit Weapon Assault Rifle Energy Gun Subdweller Laser Energy Cannon Beam Cannon Ballistic Gun Assault Rifle Ballistic Cannon Battle Cannon Special Melee Weapon Dirty Datajack Build | -11 -10 -10 ------- Run | Yrd Mat Sub Slots Evolved . | . . . Power . | . . . Propulsion . | . . . Utility . | . . . Weapon . | . . . Parts Attached 12 | 1 1 10 Power 2 | . . 2 Engine 2 | . . 2 Core . | . . . Reactor . | . . . Propulsion 1 | . . 1 Treads . | . . . Leg . | . . . Wheel 1 | . . 1 Hover . | . . . Flight . | . . . Utility 3 | 1 . 2 Device 3 | 1 . 2 Storage . | . . . Processor . | . . . Hackware . | . . . Protection . | . . . Artifact . | . . . Weapon 6 | . 1 5 Energy Gun 1 | . . 1 Energy Cannon 1 | . 1 . Ballistic Gun 2 | . . 2 Ballistic Cannon 1 | . . 1 Launcher . | . . . Special Weapon . | . . . Impact Weapon . | . . . Slashing Weapon . | . . . Piercing Weapon . | . . . Special Melee Weapon 1 | . . 1 Unidentified Prototypes . | . . . Parts Lost 4 | . . 4 Power . | . . . Propulsion 2 | . . 2 Utility . | . . . Weapon 2 | . . 2 Highest Loss Streak 2 | . . 2 To Critical Strikes . | . . . Average Slot Usage (%) 99 | . 100 99 Engine 14 | . 14 14 Leg 25 | . 28 23 Wheel 2 | . . 3 Device 14 | . 14 14 Storage 14 | . 14 14 Energy Gun 3 | . 2 4 Energy Cannon 10 | . 11 9 Ballistic Gun 14 | . 14 14 Peak Build Rating 15 | 9 9 15 Average Rating 9 | 7 9 10 On Entrance 8 | 6 9 9 Naked Turns . | . . . Heaviest Build 18 | 15 16 18 Greatest Support 20 | 20 20 20 Greatest Overweight (x) 1 | . . 1 Average Overweight (x) . | . . . Largest Inventory Capacity 8 | 8 8 8 Average Capacity 8 | 8 8 8 Most Carried 8 | 7 8 8 Average Carried 7 | 6 7 7 Final Capacity 8 | 8 8 8 Final Carried 8 | 7 8 8 Class Distribution -------------------- 83% | Mutant 16% | Scavenger-Mutant Dominant Class ---------------- Mutant | -10/Materials Mutant | -10/Subcaves Resources | -11 -10 -10 ----------- Run | Yrd Mat Sub Matter Collected 501 | 264 36 201 Remotely . | . . . Salvage Created 719 | 197 137 385 Parts 47 | 19 8 20 Haulers Intercepted . | . . . Recyclers Shooed . | . . . Parts Field Recycled . | . . . Retrieved Matter . | . . . Parts Self-Destructed 16 | . . 16 Prevented . | . . . Kills | -11 -10 -10 ------- Run | Yrd Mat Sub Combat Hostiles Destroyed 13 | . 5 8 Guns 8 | . 3 5 Cannons 5 | . 2 3 Classes Destroyed 8 | 3 3 2 Worker 2 | 2 . . Tunneler 4 | 4 . . Recycler 1 | 1 . . Watcher 1 | . 1 . Swarmer 3 | . 3 . Grunt 4 | . 2 2 Sentry 1 | . . 1 Subdweller 5 | . . 5 Best Kill Streak 5 | 5 3 3 Combat Bots Only 3 | . 2 3 Max Kills in Single Turn 1 | 1 1 1 Gunslinging . | . . . Exploded . | . . . Melee . | . . . Uniques/NPCs Destroyed . | . . . Combat | -11 -10 -10 -------- Run | Yrd Mat Sub Hostile Shots Fired 84 | . 32 52 Missed 25 | . 10 15 Damage Taken 933 | . 198 735 Core 257 | . 42 215 Absorbed by Shields . | . . . Core Remaining (%) 100 | 100 . . Volleys Fired 76 | 18 23 35 Largest 2 | 2 2 2 Hottest 80 | 70 80 80 Shots Fired 151 | 36 46 69 Gun 113 | 36 23 54 Cannon 38 | . 23 15 Launcher . | . . . Special . | . . . Kinetic 78 | 18 23 37 Thermal 73 | 18 23 32 Explosive . | . . . Electromagnetic . | . . . Robot Hit Streak 12 | 4 5 12 Robot Miss Streak 3 | 3 3 2 Penetration Max . | . . . Secondary Targets . | . . . Shots Hit Robots 93 | 19 23 51 Core Hits 28 | 8 7 13 Critical Kills 1 | . . 1 Critical Parts Destroyed . | . . . Critical Strikes 2 | . . 2 Destroy 2 | . . 2 Melee Attacks . | . . . Impact . | . . . Slashing . | . . . Piercing . | . . . Sneak Attacks . | . . . Combat Hostiles . | . . . Follow-up Attacks . | . . . Damage Inflicted 1237 | 183 295 759 Guns 916 | 183 170 563 Cannons 321 | . 125 196 Explosions . | . . . Melee . | . . . Ramming . | . . . Kinetic 521 | 95 170 256 Thermal 716 | 88 125 503 Explosive . | . . . Electromagnetic . | . . . Impact . | . . . Slashing . | . . . Piercing . | . . . Highest Corruption . | . . . Average Corruption . | . . . Corruption Purged . | . . . Corruption Blocked . | . . . Overload Shots . | . . . Overflow Damage . | . . . Projectiles . | . . . Explosions . | . . . Melee . | . . . Knockbacks . | . . . Impact . | . . . Kinetic . | . . . Secondary . | . . . Self-Inflicted Damage . | . . . Shots . | . . . Rammed . | . . . Targets Rammed . | . . . Kicked . | . . . Crushed . | . . . Highest Temperature 126 | 72 126 10 Average Temperature 35 | 28 48 3 Received Heat Transfer 219 | . 36 183 Siege Activations . | . . . Robots Corrupted . | . . . Combat Hostiles . | . . . Parts Fried . | . . . Impact Corruptions . | . . . Robots Melted . | . . . Combat Hostiles . | . . . Parts Melted 5 | 1 1 3 Heat Transferred 1300 | 259 259 782 Parts Sabotaged . | . . . Parts Stolen . | . . . Parts Stripped . | . . . Power Chain Reactions . | . . . Alert | -11 -10 -10 ------- Run | Yrd Mat Sub Peak Influence 171 | 35 171 . Initial 22 | . 22 . Average 89 | 11 113 . Maximum Alert Level . | . . . Low Security (%) 100 | 100 100 . Level 1 . | . . . Level 2 . | . . . Level 3 . | . . . Level 4 . | . . . Level 5 . | . . . High Security . | . . . Max Security . | . . . Squads Dispatched . | . . . Investigation . | . . . Extermination . | . . . Reinforcement . | . . . Assault . | . . . Garrison . | . . . Intercept . | . . . Searches Triggered . | . . . Construction Impeded . | . . . Haulers Reinforced . | . . . Active Scanning Responses . | . . . Cargo Convoy Interrupts . | . . . Stealth | -11 -10 -10 --------- Run | Yrd Mat Sub Distress Signals 2 | . 2 . Communications Jammed . | . . . Distress Signals . | . . . Times Spotted 19 | . 10 9 Peak Tracking Total 5 | . 5 3 Tactical Retreats . | . . . Traps | -11 -10 -10 ------- Run | Yrd Mat Sub Traps Triggered . | . . . Indirectly . | . . . Trap Hack Attempts . | . . . Triggered . | . . . Disarmed . | . . . Reprogrammed . | . . . Reused . | . . . Traps Extracted . | . . . Installed . | . . . Triggered . | . . . Machines | -11 -10 -10 ---------- Run | Yrd Mat Sub Machines Disabled . | . . . Max in Single Turn . | . . . Machines Repaired . | . . . Machines Dismantled . | . . . Machines Sabotaged . | . . . Overloaded Fab Kills . | . . . Hacking | -11 -10 -10 --------- Run | Yrd Mat Sub Machines Accessed 2 | . 2 . Terminals 2 | . 2 . Fabricators . | . . . Repair Stations . | . . . Recycling Units . | . . . Scanalyzers . | . . . Garrison Access . | . . . Total Hacks 5 | . 5 . Successful 1 | . 1 . Failed 4 | . 4 . Catastrophic . | . . . Database Lockouts . | . . . Manual . | . . . Terminals 5 | . 5 . Fabricators . | . . . Repair Stations . | . . . Recycling Units . | . . . Scanalyzers . | . . . Garrison Access . | . . . Terminal Hacks 1 | . 1 . Registered Components 1 | . 1 . Fabricator Hacks . | . . . Repair Station Hacks . | . . . Recycling Unit Hacks . | . . . Scanalyzer . | . . . Garrison Access Hacks . | . . . Unauthorized Hacks . | . . . Terminals . | . . . Fabricators . | . . . Repair Stations . | . . . Recycling Units . | . . . Scanalyzers . | . . . Garrison Access . | . . . Data Cores Recovered . | . . . Used . | . . . Hacking Detections 2 | . 2 . Full Trace Events . | . . . Feedback Events . | . . . Feedback Blocked . | . . . Robot Schematics Acquired . | . . . Robots Built . | . . . Authchips . | . . . Time . | . . . Total Robot Build Rating . | . . . Part Schematics Acquired . | . . . Parts Built . | . . . Authchips . | . . . Time . | . . . Total Part Build Rating . | . . . Parts Repaired . | . . . Time . | . . . Parts Recycled . | . . . Recycled Matter . | . . . Retrieved Matter . | . . . Retrieved Components . | . . . Parts Scanalyzed . | . . . Part Schematics Acquired . | . . . Parts Damaged . | . . . Bothacking | -11 -10 -10 ------------ Run | Yrd Mat Sub Used RIF Installer . | . . . Robots Hacked . | . . . Non-combat . | . . . Combat . | . . . Robot Hacks Applied . | . . . Relay Couplers Released . | . . . Fabnet Peak Effective % . | . . . Robots Rewired . | . . . Allies Hacked . | . . . Hacks Repelled . | . . . Allies | -11 -10 -10 -------- Run | Yrd Mat Sub Total Allies . | . . . Largest Group . | . . . Highest-Rated Group . | . . . Highest-Rated Ally . | . . . Total Orders . | . . . Ally Attacks . | . . . Total Damage . | . . . Kills . | . . . Allies Corrupted . | . . . Allies Melted . | . . . Intel | -11 -10 -10 ------- Run | Yrd Mat Sub Robot Analysis Total . | . . . Derelict Logs Recovered 1 | . . 1 Drone Launches . | . . . Drone Recoveries . | . . . Exploration | -11 -10 -10 ------------- Run | Yrd Mat Sub Turns Passed 1358 | 129 432 797 Spaces Moved 661 | 42 120 499 Core . | . . . Treads . | . . . Legs 526 | 42 120 364 Wheels 135 | . . 135 Hover . | . . . Flight . | . . . Fastest Speed 110 | 120 120 110 Average Speed 118 | 120 120 118 Slowest Speed 190 | 120 120 190 Overloaded Moves . | . . . Propulsion Burnouts . | . . . Robots Hopped . | . . . Cave-ins Triggered . | . . . Exploration Rate (%) 22 | 4 28 36 Regions Visited 2 Branch Regions 1 Pre-discovered Areas . | . . . Known Exits Taken . | . . . Unknown Exits Taken 2 | 1 1 . Scrap Searched . | . . . Spaces Dug . | . . . Terrain Destroyed . | . . . Melee . | . . . Projectile . | . . . AOE . | . . . Terrain Rammed . | . . . Walls Destroyed . | . . . Machines Disabled . | . . . Actions | -11 -10 -10 --------- Run | Yrd Mat Sub Total 1088 | 84 362 642 Wait 323 | 23 217 83 Move 659 | 41 119 499 Hop . | . . . Pick Up 8 | 1 1 6 Fast Attach 5 | 1 1 3 Attach 2 | . . 2 Detach . | . . . Swap 5 | . . 5 Drop 10 | . 1 9 Fire 76 | 18 23 35 Melee . | . . . Ram . | . . . Kick . | . . . Crush . | . . . Escape Stasis . | . . . Rewire . | . . . Trap . | . . . Miscellaneous . | . . . Route ------- -11/Scrapyard -10/Materials -10/Subcaves (discovered 1 exit: [*Mat]) History --------- Turn | Location | Event 13 | -11/Scrapyard | Discovered new exit (range 3) 130 | -11/Scrapyard | Entered Materials 271 | -10/Materials | Discovered new exit (range 10) 303 | -10/Materials | Build established: Mutant 562 | -10/Materials | Entered Subcaves 619 | -10/Subcaves | Discovered new exit (range 8) 1104 | -10/Subcaves | Core integrity fell below 50% 1160 | -10/Subcaves | Learned Materials trap positions 1212 | -10/Subcaves | Disturbed a concealed Subdweller 1307 | -10/Subcaves | Core integrity fell below 20% 1359 | -10/Subcaves | Destroyed by KQ-4P5(R) with Subdweller Laser Last Messages --------------- 01144_ Subatomizers dissect the Sub. Laser. 01144_ Acquired 10 matter. 01160_ Acquired derelict log, extracted data. Data stored: Materials trap records. 01212_ MV-VX4(R) angrily emerges from the Twisted Machinery. 01222_ Assault Rifle destroyed. 01225_ Acquired Sub. Shrapnel Launcher. 01235_ Acquired 11 matter. 01263_ MV-VX4(R) suffers critical hit (Destroy). 01271_ MV-VX4(R) destroyed. 01276_ Acquired 5 matter. 01323_ Sub. Optics shoots sparks and powers down. 01328_ XW-4SA(R) suffers critical hit (Destroy). 01328_ Sub. Monowheel melted. 01328_ Sub. Power Source melted. 01328_ XW-4SA(R) destroyed. 01337_ Acquired 17 matter. 01351_ Dropped Sub. Laser. 01352_ Acquired Battle Cannon. 01355_ Aluminum Leg destroyed. Map ----- +----------------------------------------------------+ | ?????????????????????????????????????????????????? | | ?????????????????????????????????????????????????? | | ?????????????????????????????????????????????????? | | ?????????????????????????????????????????????????? | | ?????????????????????????????????????????????????? | | ?????????????????????????????????????????????????? | | ?????????????????????????????????????????????????? | | ?????????????????????????????????????????????????? | | ?????????????????????????????????????????????????? | | ?????????????????????????????????????????????????? | | ???????????????????? #???????????????????????????? | | ???????????????????# ##?????????????????????????? | | ???????????????????# ##????????????????????????? | | ???????????????????# ##???????????????????????? | | ???????????????????# #???????????????????????? | | ??????????????????## ##??????????????????????? | | ?????????????????## ####???????????????????? | | ????????????????## #???????????????????? | | ????????????????? ##??????????????????? | | ??????????????????# #??????????????????? | | ??#???????????????# #??????????????????? | | ??# ????????????### ##?????????????????? | | ??# ??##???????# #????????#????????? | | ???# ## ##?????# #???????????????????? | | ???# ###### #?????????????????#??? | | ????# [@ #??????????????????### | | ????# & ## #??????????????#?## # | | ????# !%& ## ### #????????????????# | | ###### ! ### ##?# #???????????????## | | # #### # ## #? ##???????????????# | | # %#### ### ##? #????????????????# | | # #?## # #? ????????????????# | | # #??###### #? ???????????????# | | ## #???????# #?# R ???????????????# | | ?# ####????# ##?? ##??????????????## | | ?#&&&## ####?# " " #??? #????????????????### | | ?##%* ### """" ##?? #??????????????????# | | ?##&& """" #?? "#??????????????????? | | ?# ! """" #?? #???????????????????? | | ?# ###?? ###????????????????#??? | | ## # """"#???? "??????????????????????? | | # ## """"#????????????????????????????? | | #% #### """##????????????????????????????? | | # #### """#?????????????????????????????? | | # # # ## """#?????????????????????????????? | | " ### "#?????????????????????????????? | | #?# """#?????????????????????????????? | | " # ##?## "#?????????????????????????????? | | #####????#####?????????????????????????????? | | ##?????????????????????????????????????????? | +----------------------------------------------------+ Best States ------------- Heat Dissipation 25 Energy Generation 15 Energy Capacity 250 Matter Stores 300 Matter Capacity 300 Sight Range 21 Terrain Scan Range 16 Terrain Scan Density 10 Evasion (%) 55 Item Schematics ----------------- None Robot Schematics ------------------ None Fabricated ------------ Nothing Alien Tech Used ----------------- None Achievements -------------- None Challenges ------------ None Game ------ Seed PitchforkHelicalAutohacker Manual? 0 Play Time 00:13:57 Cumulative 141.2 hours Start 2024.08.08 @ 18:26:07 End 2024.08.08 @ 18:41:03 Sessions 2 Manual Loads 0 Difficulty Rogue Special Mode None Game No. 244 Rogue 240 Adventurer 0 Explorer 4 Win Type - Total 0 Types 0/0/0/0/0/0/0/0/0 Lore% 18 Gallery% 44 Achievement% 34 Wizard Run 0 Options --------- Layout 1 ASCII 0 Keyboard 1 Movement Arrows Keybinds 0 Fullscreen 1 Font 32/Proggy Map View 130x35 Zoom Use 0% Tactical HUD 1 Map Filters NONE Filters NONE Steam 0 RUN: 69abaf05-ba4e-4899-9c9b-d17ef0fd3229